fUST/lending_fUST_20241227
["ID","MTS","AMOUNT","RATE_DAILY","PERIOD"]
[346741612,1735259381597,-500.0,0.00014559,2]
[346741613,1735259381616,-517.5466905,0.00014559,2]
[346741614,1735259381636,-186.3,0.0001456,2]
[346741615,1735259381660,-500.0,0.0001456,2]
[346741616,1735259381680,-500.0,0.00014597,2]
[346741617,1735259381699,-1429.51968101,0.00014717,2]
[346741618,1735259381718,-500.0,0.00014797,2]
[346741619,1735259381739,-1409.63,0.00014815,2]
[346741620,1735259381758,-500.0,0.00014815,2]
[346741621,1735259381778,-500.0,0.00014815,2]
[346741622,1735259381798,-500.0,0.00014815,2]
[346741623,1735259381818,-3932.04,0.00014815,2]
[346741624,1735259381839,-1766.56,0.00014815,2]
[346741625,1735259381858,-500.0,0.00014816,2]
[346741626,1735259381878,-500.0,0.00014816,2]
[346741627,1735259381897,-237.74,0.00014816,2]
[346741628,1735259381917,-500.0,0.00014816,2]
[346741629,1735259381936,-500.0,0.00014816,2]
[346741630,1735259381955,-500.0,0.00014816,2]
[346741631,1735259381975,-500.0,0.00014816,2]
[346741632,1735259381994,-520.9,0.00014816,2]
[346741633,1735259382013,-500.0,0.00014816,2]
[346741634,1735259382033,-500.0,0.00014816,2]
[346741635,1735259382054,-714.48,0.00014816,2]
[346741636,1735259382074,-500.0,0.00014816,2]
[346741637,1735259382096,-500.0,0.00014816,2]
[346741638,1735259382119,-387.3,0.00014816,2]
[346741639,1735259382141,-500.0,0.00014816,2]
[346741640,1735259382162,-500.0,0.00014816,2]
[346741641,1735259382183,-500.0,0.00014816,2]
[346741642,1735259382205,-533.74,0.00014816,2]
[346741643,1735259382228,-953.63,0.00014816,2]
[346741644,1735259382248,-500.0,0.00014816,2]
[346741645,1735259382268,-500.0,0.00014816,2]
[346741646,1735259382287,-514.1,0.00014816,2]
[346741647,1735259382308,-500.0,0.00014816,2]
[346741648,1735259382424,-500.0,0.00014816,2]
[346741649,1735259382446,-654.71,0.00014816,2]
[346741650,1735259382468,-172.32,0.00014816,2]
[346741651,1735259382490,-711.0,0.00014816,2]
[346741652,1735259382509,-596.18,0.00014816,2]
[346741653,1735259382529,-725.56,0.00014816,2]
[346741654,1735259382549,-500.0,0.00014816,2]
[346741655,1735259382571,-274.43,0.00014816,2]
[346741656,1735259382590,-396.35587099,0.00014818,2]
[346741657,1735259382609,-416.72196705,0.00014818,2]
[346741658,1735259382629,-500.0,0.00014818,2]
[346741659,1735259382649,-500.0,0.00014818,2]
[346741660,1735259382670,-481.9,0.00014818,2]
[346741661,1735259382689,-500.0,0.00014818,2]
[346741662,1735259382709,-417.75,0.00014818,2]
[346741663,1735259382730,-500.0,0.00014818,2]
[346741664,1735259382749,-500.0,0.00014818,2]
[346741665,1735259382769,-778.81,0.00014818,2]
[346741666,1735259382789,-559.77,0.00014818,2]
[346741667,1735259382809,-500.0,0.00014818,2]
[346741668,1735259382828,-767.61,0.00014818,2]
[346741669,1735259382848,-500.0,0.00014818,2]
[346741670,1735259382868,-500.0,0.00014818,2]
[346741671,1735259382888,-481.77,0.00014818,2]
[346741672,1735259382909,-500.0,0.00014818,2]
[346741673,1735259382928,-247.08,0.00014818,2]
[346741674,1735259382948,-500.0,0.00014818,2]
[346741675,1735259382968,-329.04,0.00014818,2]
[346741676,1735259382989,-500.0,0.00014818,2]
[346741677,1735259383009,-500.0,0.00014818,2]
[346741678,1735259383029,-281.71,0.00014818,2]
[346741679,1735259383051,-500.0,0.00014818,2]
[346741680,1735259383072,-500.0,0.00014818,2]
[346741681,1735259383095,-500.0,0.00014818,2]
[346741682,1735259383117,-222.73,0.00014818,2]
[346741683,1735259383139,-1650.77,0.00014818,2]
[346741684,1735259383159,-500.0,0.00014818,2]
[346741685,1735259383179,-628.83,0.00014818,2]
[346741686,1735259383202,-231.36423558,0.00014818,2]
[346741687,1735259383332,-500.0,0.00013996,2]
[346741688,1735259383591,500.0,0.00013996,2]
[346741689,1735259383635,500.0,0.00013996,2]
[346741690,1735259383746,500.0,0.00013996,2]
[346741691,1735259383787,516.86734228,0.00013996,2]
[346741692,1735259383858,500.0,0.00013996,2]
[346741693,1735259383893,500.0,0.00013996,2]
[346741694,1735259383945,500.0,0.00013996,2]
[346741695,1735259383969,500.0,0.00013996,2]
[346741696,1735259384037,500.0,0.00013994,2]
[346741697,1735259384144,500.0,0.00013996,2]
[346741698,1735259384396,500.0,0.00013996,2]
[346741699,1735259384483,500.0,0.00013996,2]
[346741700,1735259386537,500.0,0.00013854,2]
[346741701,1735259386624,500.0,0.00013994,2]
[346741702,1735259386886,500.0,0.00014268,2]
[346741703,1735259386913,595.4,0.00013993,2]
[346741704,1735259387136,289.62,0.00014542,2]
[346741705,1735259387166,595.4,0.00014267,2]
[346741706,1735259387400,595.4,0.00014541,2]
[346741707,1735259388163,500.0,0.00013996,2]
[346741708,1735259389282,500.0,0.00013996,2]
[346741709,1735259389521,455.49,0.0001427,2]
[346741710,1735259393031,500.0,0.00013996,2]
[346741711,1735259394034,500.0,0.00013996,2]
[346741712,1735259395027,500.0,0.00013997,2]
[346741713,1735259395144,500.0,0.00013996,2]
[346741714,1735259396277,500.0,0.00013997,2]
[346741715,1735259397386,500.0,0.00013996,2]
[346741716,1735259397560,500.0,0.00013994,2]
[346741717,1735259397815,500.0,0.00014268,2]
[346741718,1735259398075,500.0,0.00014542,2]
[346741719,1735259398536,500.0,0.00013996,2]
[346741720,1735259400516,1174.69,0.00012953,2]
[346741721,1735259400559,500.0,0.00013996,2]
[346741722,1735259400817,1174.69,0.00013227,2]
[346741723,1735259401073,1174.69,0.00013501,2]
[346741724,1735259401458,1174.69,0.00013775,2]
[346741725,1735259401623,1174.69,0.00014049,2]
[346741726,1735259401913,1174.69,0.00014323,2]
[346741727,1735259402138,505.71379676,0.00013996,2]
[346741728,1735259402217,500.0,0.00013994,2]
[346741729,1735259402518,500.0,0.00014268,2]
[346741730,1735259402547,500.0,0.00014273,2]
[346741731,1735259402848,455.59,0.00014542,2]
[346741732,1735259403968,500.0,0.00013993,2]
[346741733,1735259404283,500.0,0.00013996,2]
[346741734,1735259404871,500.0,0.00014267,2]
[346741735,1735259405148,500.0,0.00014541,2]
[346741736,1735259406478,500.0,0.00013996,2]
[346741737,1735259407493,500.0,0.00013996,2]
[346741738,1735259408446,500.0,0.00013996,2]
[346741740,1735259412365,500.0,0.00013997,2]
[346741741,1735259413060,500.0,0.00013995,2]
[346741742,1735259413119,501.59897304,0.00014273,2]
[346741743,1735259413402,500.0,0.00014269,2]
[346741744,1735259413720,500.0,0.00014543,2]
[346741745,1735259414138,500.0,0.00013999,2]
[346741746,1735259414397,500.0,0.00014273,2]
[346741747,1735259414650,500.0,0.00014547,2]
[346741748,1735259414752,500.0,0.00013997,2]
[346741749,1735259415497,500.0,0.00012953,2]
[346741750,1735259415791,500.0,0.00013227,2]
[346741752,1735259416812,500.0,0.00013996,2]
[346741753,1735259418420,500.0,0.00012953,2]
[346741754,1735259418683,500.0,0.00013227,2]
[346741755,1735259418985,500.0,0.00013501,2]
[346741756,1735259419255,500.0,0.00013775,2]
[346741757,1735259419317,500.0,0.00013997,2]
[346741758,1735259419344,500.0,0.00012953,2]
[346741759,1735259419516,500.0,0.00014049,2]
[346741760,1735259419585,168.73,0.00013227,2]
[346741761,1735259419710,500.0,0.00013996,2]
[346741762,1735259420157,319.39202994,0.00014323,2]
[346741763,1735259421819,500.0,0.00013996,2]
[346741764,1735259423404,500.0,0.00012953,2]
[346741765,1735259423451,500.0,0.00013993,2]
[346741766,1735259423722,500.0,0.00014267,2]
[346741767,1735259423836,500.0,0.00013994,2]
[346741768,1735259424003,500.0,0.00014268,2]
[346741769,1735259424030,500.0,0.00014541,2]
[346741770,1735259424306,500.0,0.00014542,2]
[346741771,1735259424950,500.0,0.00013996,2]
[346741772,1735259427044,500.0,0.00013996,2]
[346741773,1735259428807,530.67,0.00012953,2]
[346741774,1735259428945,500.0,0.00013996,2]
[346741775,1735259430534,500.0,0.00012953,2]
[346741776,1735259430807,500.0,0.00013227,2]
[346741777,1735259431036,500.0,0.00013501,2]
[346741778,1735259431329,460.71,0.00013775,2]
[346741779,1735259432047,511.87,0.00013993,2]
[346741798,1735259432300,500.0,0.00013996,2]
[346741826,1735259432549,-618.6632773,0.00014597,2]
[346741828,1735259432562,-556.0267227,0.00014597,2]
[346741830,1735259432571,-567.68105378,0.00014667,2]
[346741833,1735259432583,-27.71894622,0.00014667,2]
[346741835,1735259432597,-595.4,0.00014815,2]
[346741837,1735259432606,-500.0,0.00014815,2]
[346741839,1735259432615,-500.0,0.00014815,2]
[346741841,1735259432624,-270.44105378,0.00014816,2]
[346741843,1735259432635,-229.55894622,0.00014816,2]
[346741845,1735259432644,-500.0,0.00014816,2]
[346741847,1735259432654,-240.0,0.00014817,2]
[346741849,1735259432664,-300.0,0.00014817,2]
[346741851,1735259432673,-500.0,0.00014817,2]
[346741853,1735259432683,-12834.82576442,0.00014818,2]
[346741855,1735259432693,-500.0,0.00014818,2]
[346741858,1735259432702,-500.0,0.00014819,2]
[346741860,1735259432712,-500.0,0.00014819,2]
[346741862,1735259432721,-500.0,0.00014819,2]
[346741864,1735259432731,-407.37,0.00014819,2]
[346741866,1735259432740,-500.0,0.00014819,2]
[346741868,1735259432749,-500.0,0.00014819,2]
[346741870,1735259432758,-254.23,0.00014819,2]
[346741872,1735259432767,-559.09,0.00014819,2]
[346741874,1735259432777,-500.0,0.00014819,2]
[346741876,1735259432786,-500.0,0.00014819,2]
[346741878,1735259432797,-394.92528936,0.00014819,2]
[346741880,1735259432808,-502.38622156,0.00014819,2]
[346741883,1735259432820,-268.209553,0.00014819,2]
[346741885,1735259432832,-499.563478,0.00014819,2]
[346741887,1735259432843,-8684.91949046,0.00014819,2]
[346741926,1735259434254,551.56587028,0.00013996,2]
[346741961,1735259435869,500.0,0.00013996,2]
[346741962,1735259437707,500.0,0.00013996,2]
[346741963,1735259437894,502.0360665,0.00012953,2]
[346741977,1735259438364,-273.4587016,0.00014819,2]
[346742024,1735259444761,-5166.77726602,0.00014819,2]
[346742025,1735259444770,-151.0,0.00014819,2]
[346742026,1735259444780,-151.0,0.00014819,2]
[346742027,1735259444789,-500.0,0.0001482,2]
[346742028,1735259444800,-440.57930802,0.0001482,2]
[346742029,1735259444819,-228.82031944,0.0001482,2]
[346742030,1735259444831,-534.60580362,0.0001482,2]
[346742031,1735259444843,-500.0,0.0001482,2]
[346742032,1735259444855,-500.0,0.0001482,2]
[346742033,1735259444865,-238.98807016,0.0001482,2]
[346742034,1735259444875,-500.0,0.0001482,2]
[346742035,1735259444886,-167.87847056,0.00014821,2]
[346742036,1735259445026,-8343.76152944,0.00014821,2]
[346742037,1735259445036,-1121.32,0.00014821,2]
[346742038,1735259445045,-500.0,0.00014821,2]
[346742039,1735259445055,-379.20044093,0.0001483,2]
[346742040,1735259445065,-500.0,0.00014831,2]
[346742041,1735259445074,-512.38521138,0.00014832,2]
[346742042,1735259445084,-1881.53691527,0.00014832,2]
[346742048,1735259449031,-532.84124362,0.00014832,2]
[346742049,1735259449044,-3633.67184111,0.00014832,2]
[346742050,1735259449054,-500.0,0.00014833,2]
[346742051,1735259449063,-500.0,0.00014833,2]
[346742052,1735259449073,-500.0,0.00014871,2]
[346742053,1735259449083,-1174.69,0.00014871,2]
[346742054,1735259449092,-5797.32918446,0.00015,2]
[346742055,1735259449101,-1566.42,0.00015,2]
[346742056,1735259449110,-500.0,0.00015042,2]
[346742057,1735259449120,-500.0,0.00015089,2]
[346742058,1735259449129,-3932.04,0.00015089,2]
[346742059,1735259449139,-1766.56,0.00015089,2]
[346742060,1735259449148,-595.4,0.00015089,2]
[346742061,1735259449157,-500.0,0.00015089,2]
[346742062,1735259449167,-500.0,0.00015089,2]
[346742063,1735259449177,-194.08,0.0001509,2]
[346742064,1735259449186,-500.0,0.0001509,2]
[346742065,1735259449198,-262.32,0.0001509,2]
[346742066,1735259449208,-500.0,0.0001509,2]
[346742067,1735259449218,-500.0,0.0001509,2]
[346742068,1735259449228,-336.18,0.0001509,2]
[346742069,1735259449238,-520.9,0.0001509,2]
[346742070,1735259449248,-500.0,0.0001509,2]
[346742071,1735259449257,-500.0,0.0001509,2]
[346742072,1735259449267,-500.0,0.0001509,2]
[346742073,1735259449277,-500.0,0.0001509,2]
[346742074,1735259449287,-533.74,0.0001509,2]
[346742075,1735259449297,-953.63,0.0001509,2]
[346742076,1735259449307,-500.0,0.0001509,2]
[346742077,1735259449316,-500.0,0.0001509,2]
[346742078,1735259449326,-514.1,0.0001509,2]
[346742079,1735259449336,-500.0,0.0001509,2]
[346742080,1735259449428,-500.0,0.0001509,2]
[346742081,1735259449438,-654.71,0.0001509,2]
[346742082,1735259449449,-711.0,0.0001509,2]
[346742083,1735259449458,-725.56,0.0001509,2]
[346742084,1735259449468,-500.0,0.0001509,2]
[346742085,1735259449477,-500.0,0.0001509,2]
[346742086,1735259449486,-500.0,0.0001509,2]
[346742087,1735259449496,-433.08,0.00015091,2]
[346742088,1735259449506,-538.63,0.00015092,2]
[346742089,1735259449516,-187.76,0.00015092,2]
[346742090,1735259449525,-500.0,0.00015092,2]
[346742091,1735259449535,-500.0,0.00015092,2]
[346742092,1735259449545,-778.81,0.00015092,2]
[346742093,1735259449554,-559.77,0.00015092,2]
[346742094,1735259449564,-586.14,0.00015092,2]
[346742095,1735259449576,-767.61,0.00015092,2]
[346742096,1735259449585,-500.0,0.00015092,2]
[346742097,1735259449598,-500.0,0.00015092,2]
[346742098,1735259449608,-314.95,0.00015092,2]
[346742099,1735259449617,-500.0,0.00015092,2]
[346742100,1735259449627,-500.0,0.00015092,2]
[346742101,1735259449636,-1650.77,0.00015092,2]
[346742102,1735259449647,-500.0,0.00015092,2]
[346742103,1735259449656,-628.83,0.00015092,2]
[346742104,1735259449665,-13066.19,0.00015092,2]
[346742105,1735259449677,-500.0,0.00015092,2]
[346742106,1735259449687,-500.0,0.00015093,2]
[346742107,1735259449697,-500.0,0.00015093,2]
[346742108,1735259449707,-296.81,0.00015093,2]
[346742109,1735259449716,-500.0,0.00015093,2]
[346742110,1735259449726,-500.0,0.00015093,2]
[346742111,1735259449735,-559.09,0.00015093,2]
[346742112,1735259449745,-151.0,0.00015093,2]
[346742113,1735259449754,-500.0,0.00015093,2]
[346742114,1735259449764,-151.0,0.00015093,2]
[346742115,1735259449773,-151.0,0.00015093,2]
[346742116,1735259449784,-500.7,0.00015093,2]
[346742117,1735259449794,-15790.24,0.00015093,2]
[346742118,1735259449803,-195.910223,0.00015093,2]
[346742119,1735259449813,-151.0,0.00015093,2]
[346742120,1735259449823,-195.910223,0.00015093,2]
[346742121,1735259449834,-151.0,0.00015093,2]
[346742122,1735259449844,-151.0,0.00015093,2]
[346742123,1735259449854,-151.0,0.00015093,2]
[346742124,1735259449863,-345.18585291,0.00015094,2]
[346742125,1735259449874,-8511.64,0.00015095,2]
[346742126,1735259449884,-1121.32,0.00015095,2]
[346742127,1735259449894,-500.0,0.00015095,2]
[346742128,1735259449903,-6048.05,0.00015106,2]
[346742129,1735259449913,-151.0,0.00015108,2]
[346742130,1735259449923,-151.0,0.00015108,2]
[346742131,1735259449933,-1429.51968101,0.00015128,2]
[346742132,1735259449942,-500.0,0.00015145,2]
[346742133,1735259449954,-1174.69,0.00015145,2]
[346742134,1735259449964,-500.0,0.00015363,2]
[346742135,1735259449974,-3932.04,0.00015363,2]
[346742136,1735259449984,-1766.56,0.00015363,2]
[346742137,1735259449993,-595.4,0.00015363,2]
[346742138,1735259450004,-500.0,0.00015363,2]
[346742139,1735259450013,-500.0,0.00015363,2]
[346742140,1735259450023,-500.0,0.00015364,2]
[346742141,1735259450033,-500.0,0.00015364,2]
[346742142,1735259450042,-500.0,0.00015364,2]
[346742143,1735259450052,-520.9,0.00015364,2]
[346742144,1735259450063,-500.0,0.00015364,2]
[346742145,1735259450072,-500.0,0.00015364,2]
[346742146,1735259450081,-500.0,0.00015364,2]
[346742147,1735259450090,-500.0,0.00015364,2]
[346742148,1735259450100,-533.74,0.00015364,2]
[346742149,1735259450109,-953.63,0.00015364,2]
[346742150,1735259450118,-500.0,0.00015364,2]
[346742151,1735259450128,-500.0,0.00015364,2]
[346742152,1735259450137,-514.1,0.00015364,2]
[346742153,1735259450146,-500.0,0.00015364,2]
[346742154,1735259450157,-500.0,0.00015364,2]
[346742155,1735259450166,-654.71,0.00015364,2]
[346742156,1735259450175,-711.0,0.00015364,2]
[346742157,1735259450185,-725.56,0.00015364,2]
[346742158,1735259450194,-500.0,0.00015364,2]
[346742159,1735259450205,-500.0,0.00015364,2]
[346742160,1735259450214,-500.0,0.00015364,2]
[346742161,1735259450223,-500.0,0.00015366,2]
[346742162,1735259450233,-500.0,0.00015366,2]
[346742163,1735259450243,-778.81,0.00015366,2]
[346742164,1735259450252,-559.77,0.00015366,2]
[346742165,1735259450261,-767.61,0.00015366,2]
[346742166,1735259450271,-500.0,0.00015366,2]
[346742167,1735259450280,-500.0,0.00015366,2]
[346742168,1735259450289,-255.71,0.00015366,2]
[346742169,1735259450299,-500.0,0.00015366,2]
[346742170,1735259450308,-1650.77,0.00015366,2]
[346742171,1735259450318,-500.0,0.00015366,2]
[346742172,1735259450327,-628.83,0.00015366,2]
[346742173,1735259450336,-13066.19,0.00015366,2]
[346742174,1735259450346,-500.0,0.00015366,2]
[346742175,1735259450355,-500.0,0.00015366,2]
[346742176,1735259450365,-500.0,0.00015367,2]
[346742177,1735259450375,-500.0,0.00015367,2]
[346742178,1735259450384,-500.0,0.00015367,2]
[346742179,1735259450394,-500.0,0.00015367,2]
[346742180,1735259450404,-559.09,0.00015367,2]
[346742181,1735259450415,-500.0,0.00015367,2]
[346742182,1735259450425,-15790.24,0.00015367,2]
[346742183,1735259450435,-8511.64,0.00015369,2]
[346742184,1735259450446,-1121.32,0.00015369,2]
[346742185,1735259450456,-500.0,0.00015369,2]
[346742186,1735259450467,-6048.05,0.0001538,2]
[346742187,1735259450476,-500.0,0.00015419,2]
[346742188,1735259450485,-1174.69,0.00015419,2]
[346742189,1735259450494,-1429.51968101,0.00015538,2]
[346742190,1735259450505,-305.13,0.00015637,2]
[346742191,1735259450514,-3932.04,0.00015637,2]
[346742192,1735259450525,-1766.56,0.00015637,2]
[346742193,1735259450534,-595.4,0.00015637,2]
[346742194,1735259450543,-500.0,0.00015637,2]
[346742195,1735259450552,-500.0,0.00015637,2]
[346742196,1735259450562,-500.0,0.00015638,2]
[346742197,1735259450571,-500.0,0.00015638,2]
[346742198,1735259450581,-500.0,0.00015638,2]
[346742199,1735259450591,-520.9,0.00015638,2]
[346742200,1735259450604,-500.0,0.00015638,2]
[346742201,1735259450613,-500.0,0.00015638,2]
[346742202,1735259450623,-500.0,0.00015638,2]
[346742203,1735259450632,-500.0,0.00015638,2]
[346742204,1735259450642,-533.74,0.00015638,2]
[346742205,1735259450652,-953.63,0.00015638,2]
[346742206,1735259450661,-500.0,0.00015638,2]
[346742207,1735259450671,-500.0,0.00015638,2]
[346742208,1735259450680,-514.1,0.00015638,2]
[346742209,1735259450690,-500.0,0.00015638,2]
[346742210,1735259450700,-500.0,0.00015638,2]
[346742211,1735259450710,-654.71,0.00015638,2]
[346742212,1735259450721,-711.0,0.00015638,2]
[346742213,1735259450731,-725.56,0.00015638,2]
[346742214,1735259450740,-500.0,0.00015638,2]
[346742215,1735259450750,-500.0,0.00015638,2]
[346742216,1735259450759,-500.0,0.00015638,2]
[346742217,1735259450769,-500.0,0.0001564,2]
[346742218,1735259450778,-500.0,0.0001564,2]
[346742219,1735259450788,-778.81,0.0001564,2]
[346742220,1735259450797,-559.77,0.0001564,2]
[346742221,1735259450807,-767.61,0.0001564,2]
[346742222,1735259450817,-500.0,0.0001564,2]
[346742223,1735259450827,-500.0,0.0001564,2]
[346742224,1735259450836,-500.0,0.0001564,2]
[346742225,1735259450846,-1650.77,0.0001564,2]
[346742226,1735259450856,-167.2,0.0001564,2]
[346742227,1735259450865,-628.83,0.0001564,2]
[346742228,1735259450875,-13066.19,0.0001564,2]
[346742229,1735259450884,-500.0,0.0001564,2]
[346742230,1735259450894,-500.0,0.0001564,2]
[346742231,1735259450904,-151.0,0.0001564,2]
[346742232,1735259450914,-151.0,0.0001564,2]
[346742233,1735259450924,-500.0,0.00015641,2]
[346742234,1735259450933,-500.0,0.00015641,2]
[346742235,1735259450943,-500.0,0.00015641,2]
[346742236,1735259450954,-500.0,0.00015641,2]
[346742237,1735259450965,-559.09,0.00015641,2]
[346742238,1735259450974,-1340.167579,0.00015641,2]
[346742239,1735259450984,-1340.167579,0.00015641,2]
[346742240,1735259450993,-500.0,0.00015641,2]
[346742241,1735259451003,-15790.24,0.00015641,2]
[346742242,1735259451012,-8511.64,0.00015643,2]
[346742243,1735259451022,-1121.32,0.00015643,2]
[346742244,1735259451031,-500.0,0.00015643,2]
[346742245,1735259451040,-500.0,0.00015653,2]
[346742246,1735259451050,-293.63,0.00015653,2]
[346742247,1735259451060,-561.88,0.00015653,2]
[346742248,1735259451069,-6048.05,0.00015654,2]
[346742249,1735259451079,-500.0,0.00015693,2]
[346742250,1735259451090,-1174.69,0.00015693,2]
[346742251,1735259451101,-379.20044093,0.00015767,2]
[346742252,1735259451111,-500.0,0.00015854,2]
[346742253,1735259451120,-3932.04,0.00015911,2]
[346742254,1735259451130,-1766.56,0.00015911,2]
[346742255,1735259451139,-595.4,0.00015911,2]
[346742256,1735259451149,-500.0,0.00015911,2]
[346742257,1735259451158,-500.0,0.00015911,2]
[346742258,1735259451168,-568.27,0.00015912,2]
[346742259,1735259451178,-500.0,0.00015912,2]
[346742260,1735259451187,-500.0,0.00015912,2]
[346742261,1735259451197,-520.9,0.00015912,2]
[346742262,1735259451207,-500.0,0.00015912,2]
[346742263,1735259451216,-500.0,0.00015912,2]
[346742264,1735259451226,-500.0,0.00015912,2]
[346742265,1735259451236,-500.0,0.00015912,2]
[346742266,1735259451245,-533.74,0.00015912,2]
[346742267,1735259451254,-953.63,0.00015912,2]
[346742268,1735259451264,-500.0,0.00015912,2]
[346742269,1735259451273,-500.0,0.00015912,2]
[346742270,1735259451283,-514.1,0.00015912,2]
[346742271,1735259451292,-500.0,0.00015912,2]
[346742272,1735259451301,-500.0,0.00015912,2]
[346742273,1735259451311,-654.71,0.00015912,2]
[346742274,1735259451321,-711.0,0.00015912,2]
[346742275,1735259451331,-725.56,0.00015912,2]
[346742276,1735259451340,-500.0,0.00015912,2]
[346742277,1735259451350,-500.0,0.00015912,2]
[346742278,1735259451359,-500.0,0.00015912,2]
[346742279,1735259451368,-500.0,0.00015913,2]
[346742280,1735259451378,-500.0,0.00015913,2]
[346742281,1735259451388,-500.0,0.00015914,2]
[346742282,1735259451397,-500.0,0.00015914,2]
[346742283,1735259451407,-778.81,0.00015914,2]
[346742284,1735259451416,-559.77,0.00015914,2]
[346742285,1735259451426,-767.61,0.00015914,2]
[346742286,1735259451435,-500.0,0.00015914,2]
[346742287,1735259451445,-500.0,0.00015914,2]
[346742288,1735259451455,-500.0,0.00015914,2]
[346742289,1735259451465,-1650.77,0.00015914,2]
[346742290,1735259451474,-151.0,0.00015914,2]
[346742291,1735259451484,-628.83,0.00015914,2]
[346742292,1735259451494,-13066.19,0.00015914,2]
[346742293,1735259451503,-500.0,0.00015914,2]
[346742294,1735259451512,-151.0,0.00015914,2]
[346742295,1735259451522,-151.0,0.00015914,2]
[346742296,1735259451531,-500.0,0.00015914,2]
[346742297,1735259451541,-195.910223,0.00015914,2]
[346742298,1735259451551,-151.0,0.00015914,2]
[346742299,1735259451560,-195.910223,0.00015914,2]
[346742300,1735259451570,-151.0,0.00015914,2]
[346742301,1735259451579,-151.0,0.00015914,2]
[346742302,1735259451589,-500.0,0.00015915,2]
[346742303,1735259451601,-500.0,0.00015915,2]
[346742304,1735259451611,-500.0,0.00015915,2]
[346742305,1735259451621,-500.0,0.00015915,2]
[346742306,1735259451631,-559.09,0.00015915,2]
[346742307,1735259451641,-151.0,0.00015915,2]
[346742308,1735259451651,-151.0,0.00015915,2]
[346742309,1735259451661,-500.0,0.00015915,2]
[346742310,1735259451756,-15790.24,0.00015915,2]
[346742311,1735259451766,-8511.64,0.00015917,2]
[346742312,1735259451776,-1121.32,0.00015917,2]
[346742313,1735259451786,-500.0,0.00015917,2]
[346742314,1735259451795,-151.0,0.00015927,2]
[346742315,1735259451806,-561.88,0.00015927,2]
[346742316,1735259451816,-6048.05,0.00015928,2]
[346742317,1735259451825,-224.95180679,0.00015967,2]
[346742318,1735259451835,-1174.69,0.00015967,2]
[346742319,1735259451845,-3932.04,0.00016185,2]
[346742320,1735259451854,-1766.56,0.00016185,2]
[346742321,1735259451864,-595.4,0.00016185,2]
[346742322,1735259451874,-500.0,0.00016185,2]
[346742323,1735259451884,-500.0,0.00016185,2]
[346742324,1735259451894,-500.0,0.00016186,2]
[346742325,1735259451904,-500.0,0.00016186,2]
[346742326,1735259451913,-151.0,0.00016186,2]